Cogmind - Beta 13 @@@ ROGUE MODE // 2024.04.18 @ 21:06:53 Player: Razor Feather Result: Destroyed by Y-45 Defender with Beam Rifle Performance ------------- Evolutions (0) 0 Regions Visited (2) 400 Robots Destroyed (28) 140 Value Destroyed (622) 622 Prototype IDs (2) 40 Alien Tech Used (0) 0 Bonus (0) 0 TOTAL SCORE: 1202 Bonus ------- None Cogmind --------- Core Integrity 0/250 Matter 273/300 Energy 248/250 System Corruption 2% Temperature Cool (29) Movement Walking (260) Ox2 Location -10/Mines Parts ------- > --- POWER (1) -------- Ion Engine > --- PROPULSION (2) --- Aluminum Leg Aluminum Leg > --- UTILITY (2) ------ High-capacity Storage Unit > --- WEAPON (2) ------- Light Assault Rifle Light Assault Rifle > --- INVENTORY (20) --- Ion Engine Light Ion Engine Aluminum Leg Aluminum Leg Aluminum Leg Aluminum Leg Aluminum Leg Wheel Heat Sink Improved Heat Sink Medium Storage Unit High-capacity Matter Pod (200) Targeting Computer Small Laser Assault Rifle Light Assault Rifle Grenade Launcher Mining Laser Peak State ------------ > --- POWER ------------ Ion Engine > --- PROPULSION ------- Aluminum Leg Aluminum Leg > --- UTILITY ---------- High-capacity Storage Unit Improved Terrain Scanner > --- WEAPON ----------- Light Assault Rifle Light Assault Rifle > --- INVENTORY -------- Ion Engine Light Ion Engine Light Ion Engine Light Ion Engine Wheel Heat Sink Small Storage Unit Large Battery High-capacity Matter Pod High-capacity Matter Pod Visual Processing Unit Light Armor Plating Light Armor Plating Small Laser Light Assault Rifle Light Assault Rifle Light Assault Rifle Mining Laser Mining Laser [Rating: 11] Favorites ----------- Power Ion Engine Engine Ion Engine Propulsion Aluminum Leg Leg Aluminum Leg Wheel Wheel Utility High-capacity Storage Unit Device Improved Terrain Scanner Storage High-capacity Storage Unit Processor Targeting Computer Protection Light Armor Plating Weapon Light Assault Rifle Energy Gun Medium Laser Ballistic Gun Light Assault Rifle Special Weapon Mining Laser Build | -11 -10 -10 ------- Run | Yrd Mat Min Slots Evolved . | . . . Power . | . . . Propulsion . | . . . Utility . | . . . Weapon . | . . . Parts Attached 33 | 7 14 12 Power 7 | 1 4 2 Engine 7 | 1 4 2 Core . | . . . Reactor . | . . . Propulsion 11 | 2 5 4 Treads . | . . . Leg 10 | 2 4 4 Wheel 1 | . 1 . Hover . | . . . Flight . | . . . Utility 6 | 2 2 2 Device 1 | 1 . . Storage 2 | 1 1 . Processor 1 | . 1 . Hackware . | . . . Protection 2 | . . 2 Artifact . | . . . Weapon 9 | 2 3 4 Energy Gun 1 | 1 . . Energy Cannon . | . . . Ballistic Gun 7 | 1 3 3 Ballistic Cannon . | . . . Launcher . | . . . Special Weapon 1 | . . 1 Impact Weapon . | . . . Slashing Weapon . | . . . Piercing Weapon . | . . . Special Melee Weapon . | . . . Unidentified Prototypes . | . . . Parts Lost 7 | . 3 4 Power 1 | . 1 . Propulsion 2 | . 1 1 Utility 2 | . . 2 Weapon 2 | . 1 1 Highest Loss Streak 3 | . 3 3 To Critical Strikes . | . . . Average Slot Usage (%) 99 | . 99 98 Engine 13 | . 13 14 Leg 27 | . 27 27 Device 9 | . 11 . Storage 14 | . 14 14 Processor 2 | . 2 2 Protection 2 | . . 10 Energy Gun 1 | . 2 . Ballistic Gun 25 | . 25 26 Naked Turns . | . . . Heaviest Build 51 | 12 49 51 Greatest Support 20 | 20 20 20 Greatest Overweight (x) 4 | 1 4 2 Average Overweight (x) 1 | . 1 2 Largest Inventory Capacity 20 | 8 20 20 Average Capacity 15 | 7 19 20 Most Carried 20 | 7 20 20 Average Carried 12 | 3 17 19 Final Capacity 20 | 8 20 20 Final Carried 20 | 4 20 18 Class Distribution -------------------- 68% | Mutant 31% | Scavenger-Mutant Dominant Class ---------------- Mutant | -10/Materials Scavenger-Mutant | -10/Mines Resources | -11 -10 -10 ----------- Run | Yrd Mat Min Matter Collected 1366 | 231 929 206 Remotely . | . . . Salvage Created 904 | 27 643 234 Parts 66 | 6 48 12 Haulers Intercepted 1 | . 1 . Recyclers Shooed 4 | . 4 . Parts Field Recycled . | . . . Retrieved Matter . | . . . Parts Self-Destructed . | . . . Prevented . | . . . Kills | -11 -10 -10 ------- Run | Yrd Mat Min Combat Hostiles Destroyed 22 | . 14 8 Guns 22 | . 14 8 Classes Destroyed 9 | 1 7 1 Worker 2 | . 2 . Tunneler 2 | 2 . . Hauler 1 | . 1 . Recycler 1 | . 1 . Mechanic 1 | . 1 . Watcher 1 | . 1 . Swarmer 6 | . 6 . Grunt 14 | . 8 6 Assembled 2 | . . 2 Best Kill Streak 7 | 1 7 3 Combat Bots Only 7 | . 7 3 Max Kills in Single Turn 2 | 1 2 1 Gunslinging . | . . . Exploded . | . . . Melee . | . . . Uniques/NPCs Destroyed . | . . . Combat | -11 -10 -10 -------- Run | Yrd Mat Min Hostile Shots Fired 174 | . 93 81 Missed 51 | . 28 23 Damage Taken 1432 | . 640 792 Core 254 | . 150 104 Absorbed by Shields . | . . . Core Remaining (%) 100 | 100 . . Volleys Fired 139 | 11 80 48 Largest 2 | 2 2 2 Hottest 100 | 70 70 100 Shots Fired 267 | 22 160 85 Gun 255 | 22 160 73 Cannon . | . . . Launcher . | . . . Special 12 | . . 12 Kinetic 215 | 11 131 73 Thermal 52 | 11 29 12 Explosive . | . . . Electromagnetic . | . . . Robot Hit Streak 11 | 5 11 7 Robot Miss Streak 6 | 3 6 3 Penetration Max . | . . . Secondary Targets 3 | . 2 1 Max Gunslinging Chain 1 | . 1 1 Shots Hit Robots 149 | 12 90 47 Core Hits 63 | 3 42 18 Critical Kills 1 | . 1 . Critical Parts Destroyed 2 | . 1 1 Critical Strikes 4 | . 3 1 Burn 1 | . 1 . Destroy 3 | . 2 1 Melee Attacks . | . . . Impact . | . . . Slashing . | . . . Piercing . | . . . Sneak Attacks . | . . . Combat Hostiles . | . . . Follow-up Attacks . | . . . Damage Inflicted 1613 | 122 976 515 Guns 1580 | 122 953 505 Cannons . | . . . Explosions . | . . . Melee . | . . . Ramming 33 | . 23 10 Kinetic 1269 | 35 729 505 Thermal 311 | 87 224 . Explosive . | . . . Electromagnetic . | . . . Impact . | . . . Slashing . | . . . Piercing . | . . . Highest Corruption 2 | . . 2 Average Corruption 2 | . . 2 Corruption Purged . | . . . Corruption Blocked . | . . . Effects 8 | . . 8 Message Errors 1 | . . 1 Matter Fused 1 | . . 1 Energy Discharges 1 | . . 1 Parts Rejected 1 | . . 1 Data Loss (minor) 2 | . . 2 Misfires 1 | . . 1 Alerts 1 | . . 1 Overload Shots . | . . . Overflow Damage . | . . . Projectiles . | . . . Explosions . | . . . Melee . | . . . Knockbacks . | . . . Impact . | . . . Kinetic . | . . . Secondary . | . . . Self-Inflicted Damage . | . . . Shots . | . . . Rammed . | . . . Targets Rammed 8 | . 4 4 Kicked 8 | . 4 4 Crushed . | . . . Highest Temperature 164 | 60 164 53 Average Temperature 31 | 26 52 14 Received Heat Transfer 534 | . 186 348 Siege Activations . | . . . Robots Corrupted . | . . . Combat Hostiles . | . . . Parts Fried . | . . . Impact Corruptions . | . . . Robots Melted . | . . . Combat Hostiles . | . . . Parts Melted 1 | . 1 . Heat Transferred 999 | 259 740 . Parts Sabotaged . | . . . Parts Stolen . | . . . Parts Stripped . | . . . Power Chain Reactions . | . . . Alert | -11 -10 -10 ------- Run | Yrd Mat Min Peak Influence 189 | 5 189 143 Initial 17 | . . 17 Average 29 | 1 47 41 Maximum Alert Level . | . . . Low Security (%) 100 | 100 100 100 Level 1 . | . . . Level 2 . | . . . Level 3 . | . . . Level 4 . | . . . Level 5 . | . . . High Security . | . . . Max Security . | . . . Squads Dispatched 3 | . 3 . Investigation 1 | . 1 . Extermination . | . . . Reinforcement 2 | . 2 . Assault . | . . . Garrison . | . . . Intercept . | . . . Searches Triggered . | . . . Construction Impeded . | . . . Haulers Reinforced . | . . . Active Scanning Responses . | . . . Cargo Convoy Interrupts . | . . . Stealth | -11 -10 -10 --------- Run | Yrd Mat Min Distress Signals 5 | . 4 1 Communications Jammed . | . . . Distress Signals . | . . . Times Spotted 38 | . 28 10 Peak Tracking Total 8 | . 8 3 Tactical Retreats 3 | . 3 . Traps | -11 -10 -10 ------- Run | Yrd Mat Min Traps Triggered . | . . . Indirectly . | . . . Trap Hack Attempts . | . . . Triggered . | . . . Disarmed . | . . . Reprogrammed . | . . . Reused . | . . . Traps Extracted . | . . . Installed . | . . . Triggered . | . . . Machines | -11 -10 -10 ---------- Run | Yrd Mat Min Machines Disabled 2 | . 1 1 Max in Single Turn 1 | . 1 1 Machines Repaired . | . . . Machines Dismantled . | . . . Machines Sabotaged . | . . . Overloaded Fab Kills . | . . . Hacking | -11 -10 -10 --------- Run | Yrd Mat Min Machines Accessed 3 | . 3 . Terminals 2 | . 2 . Fabricators . | . . . Repair Stations . | . . . Recycling Units 1 | . 1 . Scanalyzers . | . . . Garrison Access . | . . . Total Hacks 6 | . 6 . Successful 4 | . 4 . Failed 2 | . 2 . Catastrophic . | . . . Database Lockouts . | . . . Manual . | . . . Terminals 5 | . 5 . Fabricators . | . . . Repair Stations . | . . . Recycling Units 1 | . 1 . Scanalyzers . | . . . Garrison Access . | . . . Terminal Hacks 3 | . 3 . Prototype ID Bank 1 | . 1 . Unreport Threat 1 | . 1 . Registered Components 1 | . 1 . Fabricator Hacks . | . . . Repair Station Hacks . | . . . Recycling Unit Hacks 1 | . 1 . Retrieve Components 1 | . 1 . Scanalyzer . | . . . Garrison Access Hacks . | . . . Unauthorized Hacks . | . . . Terminals . | . . . Fabricators . | . . . Repair Stations . | . . . Recycling Units . | . . . Scanalyzers . | . . . Garrison Access . | . . . Data Cores Recovered . | . . . Used . | . . . Hacking Detections 2 | . 2 . Full Trace Events 1 | . 1 . Feedback Events . | . . . Feedback Blocked . | . . . Robot Schematics Acquired . | . . . Robots Built . | . . . Authchips . | . . . Time . | . . . Total Robot Build Rating . | . . . Part Schematics Acquired . | . . . Parts Built . | . . . Authchips . | . . . Time . | . . . Total Part Build Rating . | . . . Parts Repaired . | . . . Time . | . . . Parts Recycled . | . . . Recycled Matter . | . . . Retrieved Matter . | . . . Retrieved Components 6 | . 6 . Parts Scanalyzed . | . . . Part Schematics Acquired . | . . . Parts Damaged . | . . . Bothacking | -11 -10 -10 ------------ Run | Yrd Mat Min Used RIF Installer . | . . . Robots Hacked . | . . . Non-combat . | . . . Combat . | . . . Robot Hacks Applied . | . . . Relay Couplers Released . | . . . Fabnet Peak Effective % . | . . . Robots Rewired . | . . . Allies Hacked . | . . . Hacks Repelled . | . . . Allies | -11 -10 -10 -------- Run | Yrd Mat Min Total Allies . | . . . Largest Group . | . . . Highest-Rated Group . | . . . Highest-Rated Ally . | . . . Total Orders . | . . . Ally Attacks . | . . . Total Damage . | . . . Kills . | . . . Allies Corrupted . | . . . Allies Melted . | . . . Intel | -11 -10 -10 ------- Run | Yrd Mat Min Robot Analysis Total . | . . . Derelict Logs Recovered . | . . . Drone Launches . | . . . Drone Recoveries . | . . . Exploration | -11 -10 -10 ------------- Run | Yrd Mat Min Turns Passed 4177 | 1596 1987 594 Spaces Moved 1095 | 245 691 159 Core 37 | 37 . . Treads . | . . . Legs 1025 | 208 658 159 Wheels 33 | . 33 . Hover . | . . . Flight . | . . . Fastest Speed 50 | 50 120 260 Average Speed 218 | 114 245 260 Slowest Speed 260 | 120 260 260 Overloaded Moves . | . . . Propulsion Burnouts . | . . . Robots Hopped . | . . . Cave-ins Triggered . | . . . Exploration Rate (%) 50 | 42 78 32 Regions Visited 2 Branch Regions 1 Pre-discovered Areas . | . . . Known Exits Taken . | . . . Unknown Exits Taken 2 | 1 1 . Scrap Searched . | . . . Spaces Dug . | . . . Terrain Destroyed 1 | . . 1 Melee . | . . . Projectile 1 | . . 1 AOE . | . . . Terrain Rammed . | . . . Walls Destroyed . | . . . Machines Disabled . | . . . Actions | -11 -10 -10 --------- Run | Yrd Mat Min Total 2619 | 1541 842 236 Wait 1269 | 1269 . . Move 1093 | 244 690 159 Hop . | . . . Pick Up 50 | 10 34 6 Fast Attach 1 | 1 . . Attach 13 | 6 3 4 Detach . | . . . Swap 19 | . 11 8 Drop 27 | . 20 7 Fire 139 | 11 80 48 Melee . | . . . Ram . | . . . Kick 8 | . 4 4 Crush . | . . . Escape Stasis . | . . . Rewire . | . . . Trap . | . . . Miscellaneous . | . . . Route ------- -11/Scrapyard -10/Materials (discovered 3 exits: [*Mat x2] / [*Min]) -10/Mines History --------- Turn | Location | Event 6 | -11/Scrapyard | Discovered new exit (range 15) 1597 | -11/Scrapyard | Entered Materials 1598 | -10/Materials | Build established: Mutant 1921 | -10/Materials | Discovered new exit (range 8) 1954 | -10/Materials | Destroyed 7 combat bots 1961 | -10/Materials | Lost 3 parts (1p1n1w) 2178 | -10/Materials | Discovered new exit (range 7) 2404 | -10/Materials | Core integrity fell below 50% 2554 | -10/Materials | Discovered new exit (range 10) 2741 | -10/Materials | Build established: Scavenger-Mutant 3584 | -10/Materials | Entered Mines 3592 | -10/Mines | Excavation squad dispatched 3592 | -10/Mines | A large section of the Mines collapsed 3681 | -10/Mines | Build established: Mutant 3842 | -10/Mines | Excavation squad dispatched 3946 | -10/Mines | Core integrity fell below 20% 4086 | -10/Mines | Build established: Scavenger-Mutant 4092 | -10/Mines | Excavation squad dispatched 4178 | -10/Mines | Destroyed by Y-45 Defender with Beam Rifle Last Messages --------------- 03865_ K-01 Serf collects debris. 03925_ I15:|MSJFRAOTELGKLFG /=YDITL%E3S4QNJRH 03958_ G-34 Mercenary destroyed. 03985_ Dropped Ion Engine. 03989_ Dropped Aluminum Leg. 03990_ Acquired 43 matter. 04003_ Acquired 41 matter. 04008_ Dropped Aluminum Leg. 04009_ Acquired Aluminum Leg. 04070_ Kicked T-07 Excavator. 04092_ ALERT: Derelict activity in mines confirmed. Dispatching additional escorted excavation squad. 04098_ System corrupted: Energy discharge (-52). 04115_ System corrupted: Component data lost. 04162_ Y-45 Defender suffers critical hit (Destroy). 04162_ Destroyed Imp. Ion Engine. 04164_ Critical hit (Burn: +37). 04166_ Aluminum Leg destroyed. 04172_ Lgt. Armor Plating destroyed. 04175_ Lgt. Assault Rifle destroyed. Map ----- +----------------------------------------------------+ | ?????????????????????????????# #???????????????? | | ?????????????????????????????# #??????????#????? | | ?????????????????????????????# #????????? #????? | | ?????????????????????????????# #????????# ?????? | | ?????????????????????????????# #???????? ??????? | | ?????????????????????????????# #??????? #??????? | | ?????????????????????????????# ######## #??????? | | ?????????????????????????????# % #??????? | | ?????????????????????????????######## ###??????? | | ???????????????????####?????????????# #????????? | | ???????????????????? ????????????# #????????? | | ??????????????????????# ############ #????????? | | ??????????????????????# #????????? | | ??????????????????????# #########????????? | | ??????????????????????###### ##???????????????? | | ???????????????????????????# ##??????????????? | | ??????????????????????????## #??????????????? | | ?????????????????????????## #??????????????? | | ???????????????????####### ##??????????????? | | ??????????????????##"!!"## ##???????????????? | | ??????????????????#""[[""## #### #??????????? | | ??????????????????# ## #?????? | | ???????????????????# $ ### #### #??????????? | | ??????????????????###YY### #????????????????? | | ??????????????????# #????????????????? | | ??????????????????# @ ##????????????????? | | ?????????????????# ##?????????????????? | | ?????????????????# ##??????????????????? | | ?????????????????## #???????????????????? | | ??????????????????#### ##???????????????????? | | ?????????????????????#### #????????????????????? | | ????????????????????????# ????????????????????? | | ????????????????????????# ????????????????????? | | ????????????????????????####???????????????????? | | ???????????????????????????????????????????????? | | ???????????????????????????????????????????????? | | ???????????????????????????????????????????????? | | ???????????????????????????????????????????????? | | | | | | | | | | | | | | | | | | | | | | | | | +----------------------------------------------------+ Best States ------------- Heat Dissipation 25 Energy Generation 10 Energy Capacity 250 Matter Stores 300 Matter Capacity 300 Sight Range 16 Terrain Scan Range 16 Terrain Scan Density 10 Armor Coverage 150 Evasion (%) 55 Targeting Accuracy 5 Item Schematics ----------------- None Robot Schematics ------------------ None Fabricated ------------ Nothing Alien Tech Used ----------------- None Achievements -------------- None Challenges ------------ None Game ------ Seed GyrokineticSignalComputer Manual? 0 Play Time 00:20:02 Cumulative 18.4 hours Start 2024.04.18 @ 20:47:51 End 2024.04.18 @ 21:06:53 Sessions 1 Manual Loads 0 Difficulty Rogue Special Mode None Game No. 20 Rogue 20 Adventurer 0 Explorer 0 Win Type - Total 0 Types 0/0/0/0/0/0/0/0/0 Lore% 17 Gallery% 23 Achievement% 20 Wizard Run 0 Options --------- Layout 0 ASCII 0 Keyboard 0 Movement Mouse Keybinds 0 Fullscreen 1 Font 18/SmallcapsGlow Map View 76x50 Zoom Use 0% Tactical HUD 1 Map Filters NONE Filters NONE Steam 1 RUN: aa86e307-e507-4018-ba75-027fec7be86a